Cogmind - Beta 11 @@@ ROGUE MODE // 2022.04.18 @ 18:43:09 Player: DaddyWalrus Result: Destroyed by G-47 Trooper with Particle Gun Performance ------------- Evolutions (0) 0 Regions Visited (2) 400 Robots Destroyed (34) 170 Value Destroyed (625) 625 Prototype IDs (0) 0 Alien Tech Used (0) 0 Bonus (75) 75 TOTAL SCORE: 1270 Bonus ------- Follower Combat Kills 75 Cogmind --------- Core Integrity 0/250 Matter 257/300 Energy 44/125 System Corruption 0% Temperature Cool (9) Movement Treading (240) Ox1 Location -10/Mines Parts ------- > --- POWER (1) -------- Light Ion Engine > --- PROPULSION (2) --- Light Treads Light Treads > --- UTILITY (2) ------ Large Storage Unit Targeting Computer > --- WEAPON (2) ------- Heavy EM Pulse Gun Light Assault Rifle > --- INVENTORY (15) --- Wheel Heat Sink Improved Heat Sink Targeting Computer Heavy EM Pulse Gun Heavy EM Pulse Gun Heavy EM Pulse Gun Light Assault Rifle Light Assault Rifle Light Assault Rifle Peak State ------------ > --- POWER ------------ Light Nuclear Core > --- PROPULSION ------- Light Treads Compact Wheel > --- UTILITY ---------- Large Storage Unit Targeting Computer > --- WEAPON ----------- Light Assault Rifle Light Assault Rifle > --- INVENTORY -------- Ion Engine Light Ion Engine Light Treads Wheel Heat Sink Improved Heat Sink Targeting Computer Heavy EM Pulse Gun Heavy EM Pulse Gun Heavy EM Pulse Gun Heavy EM Pulse Gun Light Assault Rifle Light Assault Rifle Signal Generator [Rating: 11] Favorites ----------- Power Ion Engine Engine Ion Engine Power Core Light Nuclear Core Propulsion Light Treads Treads Light Treads Wheel Wheel Utility Targeting Computer Device Structural Scanner Storage Small Storage Unit Processor Targeting Computer Weapon Light Assault Rifle Energy Gun Beam Rifle Ballistic Gun Light Assault Rifle Ballistic Cannon Light Cannon Build | -11 -10 -10 ------- Run | Scr Mat Min Slots Evolved . | . . . Power . | . . . Propulsion . | . . . Utility . | . . . Weapon . | . . . Parts Attached 28 | 6 11 11 Power 6 | 1 2 3 Engine 5 | 1 2 2 Core 1 | . . 1 Reactor . | . . . Propulsion 8 | 2 2 4 Treads 4 | 1 1 2 Leg . | . . . Wheel 4 | 1 1 2 Hover . | . . . Flight . | . . . Utility 4 | 1 3 . Device 1 | . 1 . Storage 2 | 1 1 . Processor 1 | . 1 . Hackware . | . . . Protection . | . . . Artifact . | . . . Weapon 10 | 2 4 4 Energy Gun 6 | 2 2 2 Energy Cannon . | . . . Ballistic Gun 3 | . 1 2 Ballistic Cannon 1 | . 1 . Launcher . | . . . Special Weapon . | . . . Impact Weapon . | . . . Slashing Weapon . | . . . Piercing Weapon . | . . . Special Melee Weapon . | . . . Unidentified Prototypes . | . . . Parts Lost 8 | . 2 6 Power 3 | . 1 2 Propulsion 3 | . . 3 Utility . | . . . Weapon 2 | . 1 1 Highest Loss Streak 3 | . 1 3 To Critical Strikes . | . . . Average Slot Usage (%) 98 | . 98 99 Engine 13 | . 14 11 Treads 13 | . 14 13 Wheel 13 | . 14 13 Device 4 | . 6 . Storage 14 | . 14 14 Processor 9 | . 6 14 Energy Gun 15 | . 18 11 Ballistic Gun 9 | . 5 16 Ballistic Cannon 2 | . 3 . Naked Turns . | . . . Heaviest Build 29 | 12 29 29 Greatest Support 20 | 10 20 20 Greatest Overweight (x) 2 | 1 2 2 Average Overweight (x) 1 | . 1 1 Largest Inventory Capacity 15 | 8 15 15 Average Capacity 11 | 6 9 15 Most Carried 15 | 6 12 15 Average Carried 10 | 4 8 13 Final Capacity 15 | 8 15 15 Final Carried 12 | 6 12 10 Class Distribution -------------------- 72% | Mutant 27% | Scavenger-Mutant Dominant Class ---------------- Mutant | -10/Materials Scavenger-Mutant | -10/Mines Resources | -11 -10 -10 ----------- Run | Scr Mat Min Matter Collected 645 | 237 297 111 Remotely . | . . . Salvage Created 986 | 73 519 394 Parts 64 | 1 35 28 Haulers Intercepted 1 | . 1 . Recyclers Shooed 2 | . . 2 Parts Field Recycled . | . . . Retrieved Matter . | . . . Parts Self-Destructed . | . . . Prevented . | . . . Kills | -11 -10 -10 ------- Run | Scr Mat Min Combat Hostiles Destroyed 24 | . 12 12 Guns 18 | . 6 12 Cannons 6 | . 6 . Classes Destroyed 7 | 1 6 . Worker 2 | . 1 1 Hauler 1 | . 1 . Recycler 3 | 1 . 2 Operator 1 | . 1 . Watcher 3 | . 3 . Swarmer 14 | . 3 11 Grunt 10 | . 9 1 Best Kill Streak 5 | 1 5 4 Combat Bots Only 3 | . 3 3 Max Kills in Single Turn 1 | 1 1 1 Gunslinging . | . . . Exploded . | . . . Melee . | . . . Uniques/NPCs Destroyed . | . . . Combat | -11 -10 -10 -------- Run | Scr Mat Min Damage Taken 1300 | . 493 807 Core 255 | . 118 137 Absorbed by Shields . | . . . Core Remaining (%) 100 | 100 . . Volleys Fired 130 | 4 67 59 Largest 2 | 2 2 2 Hottest 85 | 80 85 76 Shots Fired 226 | 8 100 118 Gun 186 | 8 60 118 Cannon 40 | . 40 . Launcher . | . . . Special . | . . . Kinetic 128 | . 54 74 Thermal 71 | . 28 43 Explosive . | . . . Electromagnetic 27 | 8 18 1 Robot Hit Streak 8 | 2 6 8 Robot Miss Streak 8 | 2 4 8 Penetration Max . | . . . Secondary Targets 4 | . 1 3 Max Gunslinging Chain 1 | . 1 1 Shots Hit Robots 134 | 4 60 70 Core Hits 49 | . 23 26 Critical Kills . | . . . Critical Parts Destroyed . | . . . Critical Strikes 8 | . 4 4 Burn 6 | . 2 4 Blast 2 | . 2 . Melee Attacks . | . . . Impact . | . . . Slashing . | . . . Piercing . | . . . Sneak Attacks . | . . . Combat Hostiles . | . . . Follow-up Attacks . | . . . Damage Inflicted 1778 | 82 963 733 Guns 1248 | 52 463 733 Cannons 427 | . 427 . Explosions 103 | 30 73 . Melee . | . . . Ramming . | . . . Kinetic 854 | . 490 364 Thermal 712 | 30 313 369 Explosive . | . . . Electromagnetic 212 | 52 160 . Impact . | . . . Slashing . | . . . Piercing . | . . . Highest Corruption . | . . . Average Corruption . | . . . Corruption Purged . | . . . Corruption Blocked . | . . . Overload Shots . | . . . Overflow Damage 25 | 20 5 . Projectiles 5 | . 5 . Explosions 20 | 20 . . Melee . | . . . Knockbacks 5 | . 5 . Impact . | . . . Kinetic 5 | . 5 . Secondary . | . . . Self-Inflicted Damage 29 | . 29 . Shots 1 | . 1 . Rammed . | . . . Targets Rammed . | . . . Kicked . | . . . Crushed . | . . . Highest Temperature 269 | 72 210 269 Average Temperature 80 | 37 77 86 Received Heat Transfer 462 | . 237 225 Siege Activations . | . . . Robots Corrupted . | . . . Combat Hostiles . | . . . Parts Fried 2 | . 2 . Impact Corruptions . | . . . Robots Melted . | . . . Combat Hostiles . | . . . Parts Melted 2 | . . 2 Heat Transferred 2185 | 50 877 1258 Parts Sabotaged . | . . . Parts Stolen . | . . . Parts Stripped . | . . . Power Chain Reactions 2 | 1 1 . Missiles Intercepted . | . . . Alert | -11 -10 -10 ------- Run | Scr Mat Min Peak Influence 307 | 5 303 307 Initial 67 | . 3 67 Average 129 | 1 119 158 Maximum Alert Level 1 | . 1 1 Low Security (%) 78 | 100 84 67 Level 1 21 | . 15 32 Level 2 . | . . . Level 3 . | . . . Level 4 . | . . . Level 5 . | . . . High Security . | . . . Max Security . | . . . Squads Dispatched 4 | . 2 2 Investigation . | . . . Extermination . | . . . Reinforcement 2 | . 2 . Assault 2 | . . 2 Garrison . | . . . Intercept . | . . . Searches Triggered . | . . . Construction Impeded . | . . . Haulers Reinforced . | . . . Active Scanning Responses . | . . . Cargo Convoy Interrupts . | . . . Stealth | -11 -10 -10 --------- Run | Scr Mat Min Distress Signals 2 | . 1 1 Communications Jammed . | . . . Distress Signals . | . . . Times Spotted 51 | . 28 23 Peak Tracking Total 5 | . 4 5 Tactical Retreats 5 | . 3 2 Traps | -11 -10 -10 ------- Run | Scr Mat Min Traps Triggered . | . . . Indirectly . | . . . Trap Hack Attempts . | . . . Triggered . | . . . Disarmed . | . . . Reprogrammed . | . . . Reused . | . . . Traps Extracted . | . . . Installed . | . . . Triggered . | . . . Machines | -11 -10 -10 ---------- Run | Scr Mat Min Machines Disabled 2 | . 2 . Max in Single Turn 1 | . 1 . Machines Sabotaged . | . . . Garrisons Compromised . | . . . Overloaded Fab Kills . | . . . Hacking | -11 -10 -10 --------- Run | Scr Mat Min Machines Accessed 4 | . 4 . Terminals 2 | . 2 . Fabricators . | . . . Repair Stations . | . . . Recycling Units 2 | . 2 . Scanalyzers . | . . . Garrison Access . | . . . Total Hacks 9 | . 9 . Successful 4 | . 4 . Failed 5 | . 5 . Catastrophic . | . . . Database Lockouts . | . . . Manual 5 | . 5 . Terminals 6 | . 6 . Fabricators . | . . . Repair Stations . | . . . Recycling Units 3 | . 3 . Scanalyzers . | . . . Garrison Access . | . . . Terminal Hacks 1 | . 1 . Robot Analysis 1 | . 1 . Fabricator Hacks . | . . . Repair Station Hacks . | . . . Recycling Unit Hacks 3 | . 3 . Report Inventory 3 | . 3 . Scanalyzer . | . . . Garrison Access Hacks . | . . . Unauthorized Hacks . | . . . Terminals . | . . . Fabricators . | . . . Repair Stations . | . . . Recycling Units . | . . . Scanalyzers . | . . . Garrison Access . | . . . Data Cores Recovered . | . . . Used . | . . . Hacking Detections 2 | . 2 . Full Trace Events . | . . . Feedback Events . | . . . Feedback Blocked . | . . . Robot Schematics Acquired . | . . . Robots Built . | . . . Authchips . | . . . Time . | . . . Total Robot Build Rating . | . . . Part Schematics Acquired . | . . . Parts Built . | . . . Authchips . | . . . Time . | . . . Total Part Build Rating . | . . . Parts Repaired . | . . . Time . | . . . Parts Recycled . | . . . Recycled Matter . | . . . Retrieved Matter . | . . . Retrieved Components . | . . . Parts Scanalyzed . | . . . Part Schematics Acquired . | . . . Parts Damaged . | . . . Bothacking | -11 -10 -10 ------------ Run | Scr Mat Min Used RIF Installer . | . . . Robots Hacked . | . . . Non-combat . | . . . Combat . | . . . Robot Hacks Applied . | . . . Relay Couplers Released . | . . . Fabnet Peak Effective % . | . . . Robots Rewired . | . . . Allies Hacked . | . . . Hacks Repelled . | . . . Allies | -11 -10 -10 -------- Run | Scr Mat Min Total Allies 1 | . . 1 Largest Group 1 | . . 1 Highest-Rated Group 31 | . . 31 Highest-Rated Ally 31 | . . 31 Total Orders . | . . . Ally Attacks 19 | . . 19 Total Damage 228 | . . 228 Kills 3 | . . 3 Allies Corrupted . | . . . Allies Melted . | . . . Intel | -11 -10 -10 ------- Run | Scr Mat Min Robot Analysis Total 1 | . 1 . Derelict Logs Recovered . | . . . Drone Launches . | . . . Drone Recoveries . | . . . Exploration | -11 -10 -10 ------------- Run | Scr Mat Min Turns Passed 1644 | 60 969 615 Spaces Moved 1181 | 39 764 378 Core 1 | 1 . . Treads 17 | . 13 4 Legs . | . . . Wheels 1163 | 38 751 374 Hover . | . . . Flight . | . . . Fastest Speed 50 | 50 80 110 Average Speed 102 | 86 98 112 Slowest Speed 240 | 95 160 240 Overloaded Moves . | . . . Propulsion Burnouts . | . . . Robots Hopped . | . . . Cave-ins Triggered . | . . . Exploration Rate (%) 55 | 4 97 66 Regions Visited 2 Branch Regions 1 Pre-discovered Areas . | . . . Known Exits Taken . | . . . Unknown Exits Taken 2 | 1 1 . Scrap Searched 1 | . . 1 Spaces Dug . | . . . Terrain Destroyed 4 | . 4 . Melee . | . . . Projectile . | . . . AOE 4 | . 4 . Terrain Rammed . | . . . Walls Destroyed . | . . . Machines Disabled . | . . . Actions | -11 -10 -10 --------- Run | Scr Mat Min Total 1407 | 54 882 471 Wait 25 | . 17 8 Move 1179 | 38 763 378 Hop . | . . . Pick Up 27 | 6 14 7 Fast Attach 9 | 6 2 1 Attach 11 | . 3 8 Detach 2 | . . 2 Swap 8 | . 6 2 Drop 16 | . 10 6 Fire 130 | 4 67 59 Melee . | . . . Ram . | . . . Kick . | . . . Crush . | . . . Escape Stasis . | . . . Rewire . | . . . Trap . | . . . Miscellaneous . | . . . Route ------- -11/Scrapyard -10/Materials (discovered 5 exits: [*Mat x3] / [*Min x2]) -10/Mines (discovered 1 exit: [*Mat]) History --------- Turn | Location | Event 11 | -11/Scrapyard | Discovered new exit (range 15) 61 | -11/Scrapyard | Entered Materials 137 | -10/Materials | Discovered new exit (range 11) 200 | -10/Materials | Discovered new exit (range 10) 301 | -10/Materials | Build established: Mutant 320 | -10/Materials | Discovered new exit (range 7) 611 | -10/Materials | Discovered new exit (range 15) 797 | -10/Materials | Discovered new exit (range 9) 1030 | -10/Materials | Entered Mines 1148 | -10/Mines | Discovered new exit (range 12) 1154 | -10/Mines | Core integrity fell below 50% 1441 | -10/Mines | Met a Derelict testing a Signal Generator 1453 | -10/Mines | Found Signal Generator 1473 | -10/Mines | Build established: Scavenger-Mutant 1524 | -10/Mines | Core integrity fell below 20% 1550 | -10/Mines | Lost 3 parts (2n1w) 1645 | -10/Mines | Destroyed by G-47 Trooper with Particle Gun Last Messages --------------- 01545_ Acquired Lgt. Nuclear Core. 01547_ Dropped Ion Engine. 01550_ Acquired 10 matter. 01566_ K-01 Serf destroyed. 01568_ Acquired 2 matter. 01597_ S-10 Pest: "LOCATED POTENTIAL SOURCE OF ANOMALOUS SIGNAL. NEUTRALIZING." 01600_ YF-L44(g) destroyed. 01601_ Dropped Signal Generator. 01608_ Signal Generator broadcasts a burst of procedurally generated transmissions. 01608_ ALERT: Intercepting significant anomalous signal. Dispatching assault force. 01608_ Signal Generator's internal power supply exhausted. 01613_ S-10 Pest destroyed. 01634_ C-30 ARC bursts open, deploying its payload. 01634_ G-47 Trooper unfolds itself. 01634_ G-34 Mercenary unfolds itself. 01639_ Com. Wheel destroyed. 01640_ Lgt. Nuclear Core destroyed. Map ----- +----------------------------------------------------+ | ##?## #???????## ## ##?????## ## | | ##????# ##???????# ###???#### ## | | ##??????#########????????# ##????## < # | | ##??????????????????????## ##?????# | | #?????????????????????## ##?????# | | #???????#########????## ###???## | | ##??????# [= ###### ###########% | | ###????# *%=% %### ### # | | ##???# """###[#?###??## ## | | #???# """#?# #???????## ######### ### | | #???# """#?# #????????## ##???????# #?? | | ##???# #?# #?????????## #????????# ## | | #????# #?# #??????????# #???????## # | | [##???#########?# #??????????# ##??##### % # | | !%=##????????????# #?????????## #?## # | | =%% %##???????????# #????????## ### | | * #########???# #????????# ### | | "%" #???# #????????# ##?# | | # " ### ##### #????????# #??# | | #### ###?# ## #????????# #??# ### | | ???## ##???# ## ####????##### #?????????## | | ????## #????# ##=######### #??????????# | | ?????####????#=*%[*%! ## #?????????## | | ?????????????############## ## #??????#### | | ?????????????????????###### #?????## # | | ?????????#######?????#msg@gg ## ##????## ## | | ?????????# ???###g#### ## #????## ##? | | ?????????? ??# #?? ## #????# ##?? | | ?????????? ??# ###?? ## ###### ##?? | | ?????????? """ ?# #???? ## #?? | | ?????????# """=%## #??? ########## #?? | | ????????? """*!%=[#??? ????????## #?? | | ?????????# %=####??? ?????????# ### | | ?????????# ???????# #????????# | | ?????????########????????# ##????????## ## | | ?????????????????????????# #??????????#### ### | | ????????????????????????? ?????????????# #### | | ????????????????????????? ?????????????# ## | | ????????????????????????? ????????????? ## # | | ?????????????????????????# ?????????????## ## # | | ????????????????????????????????????????????# ## # | | ????????????????????????????????????????????# | | ????????????????????????????????????????????# | | ????????????????????????????????????????????###### | | ?????????????????????????????????????????????????# | | ?????????????????????????????????????????????????# | | ?????????????????????????????????????????????????# | | ?????????????????????????????????????????????????? | | ?????????????????????????????????????????????????? | | ????????????????????????????????????# ???????????? | +----------------------------------------------------+ Best States ------------- Heat Dissipation 25 Energy Generation 14 Energy Capacity 250 Matter Stores 300 Matter Capacity 300 Sight Range 16 Terrain Scan Density 10 Evasion (%) 44 Targeting Accuracy 5 Recoil Reduction 1 Item Schematics ----------------- None Robot Schematics ------------------ None Fabricated ------------ Nothing Alien Tech Used ----------------- None Achievements -------------- None Challenges ------------ None Game ------ Seed RiotUltimateSabre Manual? 0 Play Time 00:17:23 Cumulative 226.3 hours Start 2022.04.18 @ 18:05:34 End 2022.04.18 @ 18:43:09 Sessions 1 Manual Loads 0 Difficulty Rogue Special Mode None Game No. 85 Rogue 85 Adventurer 0 Explorer 0 Win Type - Total 2 Types 1/0/1/0/0/0/0/0/0 Lore% 62 Gallery% 74 Achievement% 56 Wizard Run 0 Options --------- ASCII 1 Keyboard 1 Movement Numpad Keybinds 0 Fullscreen 1 Font 36/Smallcaps Map View 76x50 Tactical HUD 1 Map Filters NONE Filters NONE Steam 1 RUN: 13e42f1f-291c-4465-a816-e2023268516e